Workbook

Sheet Basisgegevens
B2: Naam organisatie:
B3: Naam:
B4: Eigen verklaring: | C4: Met het invullen en opsturen van de kostprijs-gegevens voor bouwstenen jeugdhulp verklaar ik dat deze informatie te goeder trouw realistisch is ingevuld.
B6: Datum:
B9: Deze rekentool bevat de ambulante bouwstenen dyslexie die worden uitgevraagd voor het kostprijsonderzoek voor Zuid-Drenthe.
B10: Vult u graag de rekentool in voor alle bouwstenen die uw organisatie levert in Zuid-Drenthe, elk op het corresponderende tabblad.

Sheet Dyslexie - 45A45
A1: De groene vensters dienen gevuld te worden met de gegevens van de organisatie.
A2: De sheet 'Toelichting' bevat noodzakelijke informatie voor het invullen van de groene vensters. Lees deze dus rustig door alvorens de groene vensters in te vullen.
A3: Bouwsteen: | F3: Dyslexie - Diagnostiek (45A45) TRAJECT
A5: CAO | C5: Vast component of cao afgeleid | F5: CAO WAOJ | H5: CAO WAOJ | J5: CAO WAOJ | L5: CAO Sociaal Werk | N5: CAO Jeugdzorg | S5: Tariefstelling ZZP'er
A6: LOONKOSTEN PER UUR | S6: Loonkosten per uur
A7: Ingezette functiewerkgroep en bijbehorend maandsalaris | F7: FWG 20 - 5 | G7: 1982.03 | H7: FWG 30 - 8 | I7: 2256 | J7: FWG 25 - 7 | K7: 2118 | L7: Schaal 3 - 8 | M7: 2193 | N7: Schaal 3 - 7 | O7: 2151.92
A8: Bruto uurloon | G8: =G7/156 -> 12.70532051 | I8: =I7/156 -> 14.46153846 | K8: =K7/156 -> 13.57692308 | M8: =M7/156 -> 14.05769231 | O8: =O7/156 -> 13.79435897
A9: Vakantietoeslag | C9: Ja | F9: =IF(F5<>"",8%,"") -> 0.08 | G9: =F9*G8 -> 1.016425641 | H9: =IF(H5<>"",8%,"") -> 0.08 | I9: =H9*I8 -> 1.156923077 | J9: =IF(J5<>"",8%,"") -> 0.08 | K9: =J9*K8 -> 1.086153846 | L9: =IF(L5<>"",8%,"") -> 0.08 | M9: =L9*M8 -> 1.124615385 | N9: =IF(N5<>"",8%,"") -> 0.08 | O9: =O8*N9 -> 1.103548718
A10: Bruto uurloon incl. vakantietoeslag | G10: =G8+G9 -> 13.72174615 | I10: =I8+I9 -> 15.61846154 | K10: =K8+K9 -> 14.66307692 | M10: =M8+M9 -> 15.18230769 | O10: =O8+O9 -> 14.89790769
A11: Eindejaarsuitkering | C11: Ja | F11: =VLOOKUP(F5,Toelichting!$A$39:$C$44,2,0) -> 0 | G11: =F11*G8 -> 0 | H11: =VLOOKUP(H5,Toelichting!$A$39:$C$44,2,0) -> 0 | I11: =H11*I8 -> 0 | J11: =VLOOKUP(J5,Toelichting!$A$39:$C$44,2,0) -> 0 | K11: =J11*K8 -> 0 | L11: =VLOOKUP(L5,Toelichting!$A$39:$C$44,2,0) -> 0.083 | M11: =L11*M8 -> 1.166788462 | N11: =VLOOKUP(N5,Toelichting!$A$39:$C$44,2,0) -> 0.083 | O11: =N11*O8 -> 1.144931795
A12: Onregelmatigheidstoeslag over bruto uurloon incl. vakantietoeslag | F12: 0.01 | G12: =F12*G10 -> 0.1372174615 | H12: 0.01 | I12: =H12*I10 -> 0.1561846154 | J12: 0.01 | K12: =J12*K10 -> 0.1466307692 | L12: 0.01 | M12: =L12*M10 -> 0.1518230769 | N12: 0.01 | O12: =N12*O10 -> 0.1489790769
A13: Totaal bruto uurloon | E13: =SUM(E$9:E$11) -> 0 | G13: =SUM(G$10:G$12) -> 13.85896362 | I13: =SUM(I$10:I$12) -> 15.77464615 | K13: =SUM(K$10:K$12) -> 14.80970769 | M13: =SUM(M$10:M$12) -> 16.50091923 | O13: =SUM(O$10:O$12) -> 16.19181856
A14: totale sociale lasten | F14: 0.1739 | H14: 0.1739 | J14: 0.1739 | L14: 0.1739 | N14: 0.1739
A15: werkgeversdeel OP | F15: =(((G13*1878)-Toelichting!$B$46)*Toelichting!$B$47/(G13*1878))*0.5 -> 0.06140258188 | H15: =(((I13*1878)-Toelichting!$B$46)*Toelichting!$B$47/(I13*1878))*0.5 -> 0.06821508615 | J15: =(((K13*1878)-Toelichting!$B$46)*Toelichting!$B$47/(K13*1878))*0.5 -> 0.0650038878 | L15: =(((M13*1878)-Toelichting!$B$46)*Toelichting!$B$47/(M13*1878))*0.5 -> 0.07038431718 | N15: =(((O13*1878)-Toelichting!$B$46)*Toelichting!$B$47/(O13*1878))*0.5 -> 0.06948488214
A16: werkgeversdeel AP | F16: =IF(0.5*0.6%*((1878*G13-Toelichting!$B$48)/(1878*G13))>0,0.5*0.6%*((1878*G13-Toelichting!$B$48)/(1878*G13)),0) -> 0.0005863650298 | H16: =IF(0.5*0.6%*((1878*I13-Toelichting!$B$48)/(1878*I13))>0,0.5*0.6%*((1878*I13-Toelichting!$B$48)/(1878*I13)),0) -> 0.0008794783156 | J16: =IF(0.5*0.6%*((1878*K13-Toelichting!$B$48)/(1878*K13))>0,0.5*0.6%*((1878*K13-Toelichting!$B$48)/(1878*K13)),0) -> 0.0007413140132 | L16: =IF(0.5*0.6%*((1878*M13-Toelichting!$B$48)/(1878*M13))>0,0.5*0.6%*((1878*M13-Toelichting!$B$48)/(1878*M13)),0) -> 0.0009728111649 | N16: =IF(0.5*0.6%*((1878*O13-Toelichting!$B$48)/(1878*O13))>0,0.5*0.6%*((1878*O13-Toelichting!$B$48)/(1878*O13)),0) -> 0.000934112274
A17: Totale pensioenpremies en sociale lasten | F17: =F14+F15+F16 -> 0.2358889469 | G17: =F17*G13 -> 3.269176332 | H17: =H14+H15+H16 -> 0.2429945645 | I17: =H17*I13 -> 3.833153272 | J17: =J14+J15+J16 -> 0.2396452018 | K17: =J17*K13 -> 3.549075389 | L17: =L14+L15+L16 -> 0.2452571283 | M17: =L17*M13 -> 4.046968066 | N17: =N14+N15+N16 -> 0.2443189944 | O17: =N17*O8 -> 3.370223913
A18: Brutoloon inclusief pensioenpremies en sociale lasten | G18: =G13+G17 -> 17.12813995 | I18: =I13+I17 -> 19.60779943 | K18: =K13+K17 -> 18.35878308 | M18: =M13+M17 -> 20.5478873 | O18: =O13+O17 -> 19.56204248 | S18: Bruto Uurloon | U18: 20
A19: Overig personeelskosten zorgverleners | S19: Overige kosten ZZP-hulpverlening
A20: Verlof | C20: Ja | F20: =VLOOKUP(F5,Toelichting!$A$39:$C$44,3,0) -> 0.0959 | H20: =VLOOKUP(H5,Toelichting!$A$39:$C$44,3,0) -> 0.0959 | J20: =VLOOKUP(J5,Toelichting!$A$39:$C$44,3,0) -> 0.0959 | L20: =VLOOKUP(L5,Toelichting!$A$39:$C$44,3,0) -> 0.107 | N20: =VLOOKUP(N5,Toelichting!$A$39:$C$44,3,0) -> 0.1065
A21: Scholing | C21: Ja | F21: =IF(F5="CAO Jeugdzorg",1.5%,2%) -> 0.02 | H21: =IF(H5="CAO Jeugdzorg",1.5%,2%) -> 0.02 | J21: =IF(J5="CAO Jeugdzorg",1.5%,2%) -> 0.02 | L21: =IF(L5="CAO Jeugdzorg",1.5%,2%) -> 0.02 | N21: =IF(N5="CAO Jeugdzorg",1.5%,2%) -> 0.015
A22: Ziekteverzuim | C22: Nee | F22: 0.067 | H22: =F22 -> 0.067 | J22: =F22 -> 0.067 | L22: =F22 -> 0.067 | N22: =F22 -> 0.067
A23: Wel gewerkte, niet declarabele activiteiten | F23: 0.01 | H23: 0.01 | J23: 0.01 | L23: 0.01 | N23: 0.01 | S23: Wel gewerkte, niet declarabele activiteiten | T23: 0.01
A24: Opslag Bruto/Netto calculatie | F24: =SUM(F20:F23) -> 0.1929 | G24: =G18/(1-F24)-G18 -> 4.093691235 | H24: =SUM(H20:H23) -> 0.1929 | I24: =I18/(1-H24)-I18 -> 4.686339375 | J24: =SUM(J20:J23) -> 0.1929 | K24: =K18/(1-J24)-K18 -> 4.387819671 | L24: =SUM(L20:L23) -> 0.204 | M24: =M18/(1-L24)-M18 -> 5.266041468 | N24: =SUM(N20:N23) -> 0.1985 | O24: =O18/(1-N24)-O18 -> 4.844747887 | S24: Opslag Bruto/Netto calculatie | T24: =SUM(T23) -> 0.01 | U24: =U18/(1-T23)-U18 -> 0.202020202
A25: Reiskosten cliënt naar cliënt | C25: Ja | G25: 0.5 | I25: 0.5 | K25: 0.5 | M25: 0.5 | O25: 0.5 | S25: Reiskosten cliënt naar cliënt | U25: 0.5
A26: Totaal overige personeelskosten zorgverleners | G26: =SUM(G$24:G$25) -> 4.593691235 | I26: =SUM(I$24:I$25) -> 5.186339375 | K26: =SUM(K$24:K$25) -> 4.887819671 | M26: =SUM(M$24:M$25) -> 5.766041468 | O26: =SUM(O24:O25) -> 5.344747887 | S26: Totaal overige personeelskosten zzp'er | U26: =SUM(U24:U25) -> 0.702020202
A27: Totale directe kostprijs per uur | G27: =G26+G18 -> 21.72183118 | I27: =I18+I26 -> 24.7941388 | K27: =K18+K26 -> 23.24660275 | M27: =M18+M26 -> 26.31392876 | O27: =O18+O26 -> 24.90679036 | S27: Totale directe kostprijs per uur | U27: =U18+U26 -> 20.7020202
A29: Overhead | S29: Overhead
A30: Totaal overhead | F30: 0.01 | G30: =F30*G27 -> 0.2172183118 | H30: 0.01 | I30: =H30*I27 -> 0.247941388 | J30: 0.01 | K30: =J30*K27 -> 0.2324660275 | L30: 0.01 | M30: =L30*M27 -> 0.2631392876 | N30: 0.01 | O30: =N30*O27 -> 0.2490679036 | S30: Totaal overhead | T30: 0.01 | U30: =T30*U27 -> 0.207020202
A31: Risico-opslag | S31: Risico-opslag
A32: Totale opslag voor risico / marge | F32: 0.02 | G32: =F32*G27 -> 0.4344366237 | H32: 0.02 | I32: =H32*I27 -> 0.495882776 | J32: 0.02 | K32: =J32*K27 -> 0.464932055 | L32: 0.02 | M32: =L32*M27 -> 0.5262785753 | N32: 0.02 | O32: =N32*O27 -> 0.4981358073 | S32: Totale opslag voor risico / marge | T32: 0.02 | U32: =T32*U27 -> 0.414040404
A33: Ongewogen tarief per uur | G33: =IF(F5<>"",SUM(G27+G30+G32),0) -> 22.37348612 | I33: =IF(H5<>"",SUM(I27+I30+I32),0) -> 25.53796296 | K33: =IF(J5<>"",SUM(K27+K30+K32),0) -> 23.94400083 | M33: =IF(L5<>"",SUM(M27+M30+M32),0) -> 27.10334663 | O33: =IF(N5<>"",SUM(O27+O30+O32),0) -> 25.65399408 | U33: =SUM(U27+U30+U32) -> 21.32308081
A34: Calculatie bij trajectprijs | S34: Calculatie bij trajectprijs
A35: Te verwachten gemiddelde totaal in te zetten uren | F35: 1 | H35: 1 | J35: 1 | L35: 1 | N35: 1 | S35: Te verwachten gemiddelde totaal in te zetten uren | T35: 1
A36: Gewogen gemiddelde trajectprijs | O36: =F35*G33+H35*I33+J35*K33+L35*M33+N35*O33 -> 124.6127906 | U36: =SUM(T35*U33) -> 21.32308081
A37: Gemiddelde duur van het traject in maanden | F37: 4 | S37: Gemiddelde duur van het traject | T37: 4
A38: Indexatie (wordt nader bepaald) | O38: 0
A40: Opmerkingen

Sheet Dyslexie - 45A64
A1: De groene vensters dienen gevuld te worden met de gegevens van de organisatie.
A2: De sheet 'Toelichting' bevat noodzakelijke informatie voor het invullen van de groene vensters. Lees deze dus rustig door alvorens de groene vensters in te vullen.
A3: Bouwsteen: | F3: Dyslexie - Behandeling (45A64) TRAJECT
A5: CAO | C5: Vast component of cao afgeleid | F5: CAO WAOJ | H5: CAO WAOJ | J5: CAO WAOJ | L5: CAO Sociaal Werk | N5: CAO Jeugdzorg | S5: Tariefstelling ZZP'er
A6: LOONKOSTEN PER UUR | S6: Loonkosten per uur
A7: Ingezette functiewerkgroep en bijbehorend maandsalaris | F7: FWG 20 - 5 | G7: 1982.03 | H7: FWG 30 - 8 | I7: 2256 | J7: FWG 25 - 7 | K7: 2118 | L7: Schaal 3 - 8 | M7: 2193 | N7: Schaal 3 - 7 | O7: 2151.92
A8: Bruto uurloon | G8: =G7/156 -> 12.70532051 | I8: =I7/156 -> 14.46153846 | K8: =K7/156 -> 13.57692308 | M8: =M7/156 -> 14.05769231 | O8: =O7/156 -> 13.79435897
A9: Vakantietoeslag | C9: Ja | F9: =IF(F5<>"",8%,"") -> 0.08 | G9: =F9*G8 -> 1.016425641 | H9: =IF(H5<>"",8%,"") -> 0.08 | I9: =H9*I8 -> 1.156923077 | J9: =IF(J5<>"",8%,"") -> 0.08 | K9: =J9*K8 -> 1.086153846 | L9: =IF(L5<>"",8%,"") -> 0.08 | M9: =L9*M8 -> 1.124615385 | N9: =IF(N5<>"",8%,"") -> 0.08 | O9: =O8*N9 -> 1.103548718
A10: Bruto uurloon incl. vakantietoeslag | G10: =G8+G9 -> 13.72174615 | I10: =I8+I9 -> 15.61846154 | K10: =K8+K9 -> 14.66307692 | M10: =M8+M9 -> 15.18230769 | O10: =O8+O9 -> 14.89790769
A11: Eindejaarsuitkering | C11: Ja | F11: =VLOOKUP(F5,Toelichting!$A$39:$C$44,2,0) -> 0 | G11: =F11*G8 -> 0 | H11: =VLOOKUP(H5,Toelichting!$A$39:$C$44,2,0) -> 0 | I11: =H11*I8 -> 0 | J11: =VLOOKUP(J5,Toelichting!$A$39:$C$44,2,0) -> 0 | K11: =J11*K8 -> 0 | L11: =VLOOKUP(L5,Toelichting!$A$39:$C$44,2,0) -> 0.083 | M11: =L11*M8 -> 1.166788462 | N11: =VLOOKUP(N5,Toelichting!$A$39:$C$44,2,0) -> 0.083 | O11: =N11*O8 -> 1.144931795
A12: Onregelmatigheidstoeslag over bruto uurloon incl. vakantietoeslag | F12: 0.01 | G12: =F12*G10 -> 0.1372174615 | H12: 0.01 | I12: =H12*I10 -> 0.1561846154 | J12: 0.01 | K12: =J12*K10 -> 0.1466307692 | L12: 0.01 | M12: =L12*M10 -> 0.1518230769 | N12: 0.01 | O12: =N12*O10 -> 0.1489790769
A13: Totaal bruto uurloon | E13: =SUM(E$9:E$11) -> 0 | G13: =SUM(G$10:G$12) -> 13.85896362 | I13: =SUM(I$10:I$12) -> 15.77464615 | K13: =SUM(K$10:K$12) -> 14.80970769 | M13: =SUM(M$10:M$12) -> 16.50091923 | O13: =SUM(O$10:O$12) -> 16.19181856
A14: totale sociale lasten | F14: 0.1739 | H14: 0.1739 | J14: 0.1739 | L14: 0.1739 | N14: 0.1739
A15: werkgeversdeel OP | F15: =(((G13*1878)-Toelichting!$B$46)*Toelichting!$B$47/(G13*1878))*0.5 -> 0.06140258188 | H15: =(((I13*1878)-Toelichting!$B$46)*Toelichting!$B$47/(I13*1878))*0.5 -> 0.06821508615 | J15: =(((K13*1878)-Toelichting!$B$46)*Toelichting!$B$47/(K13*1878))*0.5 -> 0.0650038878 | L15: =(((M13*1878)-Toelichting!$B$46)*Toelichting!$B$47/(M13*1878))*0.5 -> 0.07038431718 | N15: =(((O13*1878)-Toelichting!$B$46)*Toelichting!$B$47/(O13*1878))*0.5 -> 0.06948488214
A16: werkgeversdeel AP | F16: =IF(0.5*0.6%*((1878*G13-Toelichting!$B$48)/(1878*G13))>0,0.5*0.6%*((1878*G13-Toelichting!$B$48)/(1878*G13)),0) -> 0.0005863650298 | H16: =IF(0.5*0.6%*((1878*I13-Toelichting!$B$48)/(1878*I13))>0,0.5*0.6%*((1878*I13-Toelichting!$B$48)/(1878*I13)),0) -> 0.0008794783156 | J16: =IF(0.5*0.6%*((1878*K13-Toelichting!$B$48)/(1878*K13))>0,0.5*0.6%*((1878*K13-Toelichting!$B$48)/(1878*K13)),0) -> 0.0007413140132 | L16: =IF(0.5*0.6%*((1878*M13-Toelichting!$B$48)/(1878*M13))>0,0.5*0.6%*((1878*M13-Toelichting!$B$48)/(1878*M13)),0) -> 0.0009728111649 | N16: =IF(0.5*0.6%*((1878*O13-Toelichting!$B$48)/(1878*O13))>0,0.5*0.6%*((1878*O13-Toelichting!$B$48)/(1878*O13)),0) -> 0.000934112274
A17: Totale pensioenpremies en sociale lasten | F17: =F14+F15+F16 -> 0.2358889469 | G17: =F17*G13 -> 3.269176332 | H17: =H14+H15+H16 -> 0.2429945645 | I17: =H17*I13 -> 3.833153272 | J17: =J14+J15+J16 -> 0.2396452018 | K17: =J17*K13 -> 3.549075389 | L17: =L14+L15+L16 -> 0.2452571283 | M17: =L17*M13 -> 4.046968066 | N17: =N14+N15+N16 -> 0.2443189944 | O17: =N17*O8 -> 3.370223913
A18: Brutoloon inclusief pensioenpremies en sociale lasten | G18: =G13+G17 -> 17.12813995 | I18: =I13+I17 -> 19.60779943 | K18: =K13+K17 -> 18.35878308 | M18: =M13+M17 -> 20.5478873 | O18: =O13+O17 -> 19.56204248 | S18: Bruto Uurloon | U18: 20
A19: Overig personeelskosten zorgverleners | S19: Overige kosten ZZP-hulpverlening
A20: Verlof | C20: Ja | F20: =VLOOKUP(F5,Toelichting!$A$39:$C$44,3,0) -> 0.0959 | H20: =VLOOKUP(H5,Toelichting!$A$39:$C$44,3,0) -> 0.0959 | J20: =VLOOKUP(J5,Toelichting!$A$39:$C$44,3,0) -> 0.0959 | L20: =VLOOKUP(L5,Toelichting!$A$39:$C$44,3,0) -> 0.107 | N20: =VLOOKUP(N5,Toelichting!$A$39:$C$44,3,0) -> 0.1065
A21: Scholing | C21: Ja | F21: =IF(F5="CAO Jeugdzorg",1.5%,2%) -> 0.02 | H21: =IF(H5="CAO Jeugdzorg",1.5%,2%) -> 0.02 | J21: =IF(J5="CAO Jeugdzorg",1.5%,2%) -> 0.02 | L21: =IF(L5="CAO Jeugdzorg",1.5%,2%) -> 0.02 | N21: =IF(N5="CAO Jeugdzorg",1.5%,2%) -> 0.015
A22: Ziekteverzuim | C22: Nee | F22: 0.067 | H22: =F22 -> 0.067 | J22: =F22 -> 0.067 | L22: =F22 -> 0.067 | N22: =F22 -> 0.067
A23: Wel gewerkte, niet declarabele activiteiten | F23: 0.01 | H23: 0.01 | J23: 0.01 | L23: 0.01 | N23: 0.01 | S23: Wel gewerkte, niet declarabele activiteiten | T23: 0.01
A24: Opslag Bruto/Netto calculatie | F24: =SUM(F20:F23) -> 0.1929 | G24: =G18/(1-F24)-G18 -> 4.093691235 | H24: =SUM(H20:H23) -> 0.1929 | I24: =I18/(1-H24)-I18 -> 4.686339375 | J24: =SUM(J20:J23) -> 0.1929 | K24: =K18/(1-J24)-K18 -> 4.387819671 | L24: =SUM(L20:L23) -> 0.204 | M24: =M18/(1-L24)-M18 -> 5.266041468 | N24: =SUM(N20:N23) -> 0.1985 | O24: =O18/(1-N24)-O18 -> 4.844747887 | S24: Opslag Bruto/Netto calculatie | T24: =SUM(T23) -> 0.01 | U24: =U18/(1-T23)-U18 -> 0.202020202
A25: Reiskosten cliënt naar cliënt | C25: Ja | G25: 0.5 | I25: 0.5 | K25: 0.5 | M25: 0.5 | O25: 0.5 | S25: Reiskosten cliënt naar cliënt | U25: 0.5
A26: Totaal overige personeelskosten zorgverleners | G26: =SUM(G$24:G$25) -> 4.593691235 | I26: =SUM(I$24:I$25) -> 5.186339375 | K26: =SUM(K$24:K$25) -> 4.887819671 | M26: =SUM(M$24:M$25) -> 5.766041468 | O26: =SUM(O24:O25) -> 5.344747887 | S26: Totaal overige personeelskosten zzp'er | U26: =SUM(U24:U25) -> 0.702020202
A27: Totale directe kostprijs per uur | G27: =G26+G18 -> 21.72183118 | I27: =I18+I26 -> 24.7941388 | K27: =K18+K26 -> 23.24660275 | M27: =M18+M26 -> 26.31392876 | O27: =O18+O26 -> 24.90679036 | S27: Totale directe kostprijs per uur | U27: =U18+U26 -> 20.7020202
A29: Overhead | S29: Overhead
A30: Totaal overhead | F30: 0.01 | G30: =F30*G27 -> 0.2172183118 | H30: 0.01 | I30: =H30*I27 -> 0.247941388 | J30: 0.01 | K30: =J30*K27 -> 0.2324660275 | L30: 0.01 | M30: =L30*M27 -> 0.2631392876 | N30: 0.01 | O30: =N30*O27 -> 0.2490679036 | S30: Totaal overhead | T30: 0.01 | U30: =T30*U27 -> 0.207020202
A31: Risico-opslag | S31: Risico-opslag
A32: Totale opslag voor risico / marge | F32: 0.02 | G32: =F32*G27 -> 0.4344366237 | H32: 0.02 | I32: =H32*I27 -> 0.495882776 | J32: 0.02 | K32: =J32*K27 -> 0.464932055 | L32: 0.02 | M32: =L32*M27 -> 0.5262785753 | N32: 0.02 | O32: =N32*O27 -> 0.4981358073 | S32: Totale opslag voor risico / marge | T32: 0.02 | U32: =T32*U27 -> 0.414040404
A33: Ongewogen tarief per uur | G33: =IF(F5<>"",SUM(G27+G30+G32),0) -> 22.37348612 | I33: =IF(H5<>"",SUM(I27+I30+I32),0) -> 25.53796296 | K33: =IF(J5<>"",SUM(K27+K30+K32),0) -> 23.94400083 | M33: =IF(L5<>"",SUM(M27+M30+M32),0) -> 27.10334663 | O33: =IF(N5<>"",SUM(O27+O30+O32),0) -> 25.65399408 | U33: =SUM(U27+U30+U32) -> 21.32308081
A34: Calculatie bij trajectprijs | S34: Calculatie bij trajectprijs
A35: Te verwachten gemiddelde totaal in te zetten uren | F35: 1 | H35: 1 | J35: 1 | L35: 1 | N35: 1 | S35: Te verwachten gemiddelde totaal in te zetten uren | T35: 1
A36: Gewogen gemiddelde trajectprijs | O36: =F35*G33+H35*I33+J35*K33+L35*M33+N35*O33 -> 124.6127906 | U36: =SUM(T35*U33) -> 21.32308081
A37: Gemiddelde duur van het traject in maanden | F37: 4 | S37: Gemiddelde duur van het traject | T37: 4
A38: Indexatie (wordt nader bepaald) | O38: 0
A40: Opmerkingen

Sheet Toelichting
A1: Deze sheet verschaft achterliggende informatie bij de factoren die samen de kostprijs per bouwsteen bepalen.
A2: Kostprijsfactor | B2: Toelichting
A3: CAO | B3: Zes CAOs (Jeugdzorg, Gehandicaptenzorg, GGZ, Sociaal Werk en VVT; WAOJ) kunnen van toepassing zijn op de verschillende bouwstenen. Deze rij geeft de mogelijkheid om - middels een drop-down menu - per bouwsteen aan te geven welke CAOs - en daarmee kostprijsfactoren - van toepassing zijn.
A4: Ingezette functiewerkgroep | B4: In deze rij kunnen zorgaanbieders aangeven welke functiewerkgroep en trede zij per CAO in zullen zetten.
A5: Bruto uurloon | B5: Het bruto uurloon hangt af van de positie in de salarisschaal binnen de van toepassing zijnde CAO. Vanuit het bruto fulltime maandsalaris zoals opgenomen in de CAOs wordt het uurtarief berekend. Hierbij wordt uitgegaan van een 36e urige werkwerkweek (1878 uren) op jaarbasis bij een fulltime positie, hetgeen neerkomt op 156 uren per maand.
A6: Vakantietoeslag | B6: Vanuit de CAOs vloeit voort dat de vakantietoeslag 8% van het feitelijk verdiende loont betreft.
A7: Eindejaarsuitkering | B7: De eindejaarsuitkering is afhankelijk van de betreffende CAO. De percentages per 01-01-2019 bedragen: VVT: 8,33% GGZ: 8,33% Jeugdzorg: 8,30% GHZ: 7,05% Sociaal Werk: 8,30% WAOJ: het betreft hier een winstuitkering van ten hoogste 8%. Aangezien dit percentage organisatie-afhankelijk is, vragen we zorgaanbieders hier zelf het gemiddelde percentage in te vullen.
A8: Totale pensioenpremies en sociale lasten | B8: Het totale bedrag voor het werkgeversdeel van pensioenpremies en sociale lasten wordt berekend op een aparte sheet. Aldaar is tevens een uitleg per factor opgenomen. De vooraf berekende percentages kunnen voor uw organisatie afwijken: overschrijf in dat geval de formules in de betreffende cellen met de realistische waardes.
A9: Verlof | B9: Het aantal verlofuren is afhankelijk van de CAO. Het aantal verlofuren bedraagt respectievelijk: VVT: 237,5 GGZ: 201 Jeugdzorg: 200 GHZ: 114 + een afhankelijk component. Een fictief totaal is daarom gebaseerd op de andere CAO's. Sociaal Werk: 170 + een afhankelijk component. Een fictief totaal is daarom gebaseerd op de andere CAO's. Het veld verlof is standaard vooraf ingevuld, maar kan worden overschreven als er sprake is van extra bovenwettelijk verlof.
A10: Scholing | B10: Het percentage van de uren dat beschikbaar is voor scholing is afhankelijk van de CAO. De percentages bedragen: VVT: 2,0% GGZ: 2,0% (deze informatie mist uit de CAO en is gebaseerd op de andere CAO's) Jeugdzorg: 1,5% GHZ: 2,0% Sociaal Werk: 2,0% (deze informatie mist uit de CAO en is gebaseerd op de andere CAO's) WAOJ: 2,0% (deze informatie mist uit de CAO en is gebaseerd op de andere CAO's) Het veld scholing is standaard vooraf ingevuld, maar kan worden overschreven als er sprake is van extra extra scholingstijd.
A11: Ziekteverzuim | B11: Ziekteverzuim wisselt per organisatie. Het gemiddelde in de sector Jeugdhulp bedroeg over 2018 6,7% volgens het CBS.
A12: Cliëntgebonden tijd | B12: Onder cliëntgebonden tijd wordt verstaan: Direct cliëntgebonden tijd. Dit betreft de contacttijd die een professional aan een cliënt besteedt bij een activititeit: face to face contacttijd, telefonische contacttijd (ear to ear), elektronische contacttijd (bit-to-bit) Indirect cliëntgebonden tijd: indirecte tijd die samenhangt met het uitvoeren van een direct cliëntgebonden activiteit, zoals een behandel-, begeleidings- of verplegingsactiviteit. Denk hierbij aan: het voorbereiden van een activiteit, verslaglegging en administratie in het kader van de activiteit, het opruimen van de speelkamer bij een behandelcontact met kleine kinderen, hersteltijd na een intensieve behandelsessie. De reistijd van cliënt naar cliënt valt hier tevens onder.
A13: Wel gewerkte, niet-declarabele activiteiten | B13: Hieronder vallen onder andere het lezen van vakliteratuur, algemene vergaderingen en intervisiebijeenkomsten. Tevens moet hier de tijd voor no-shows in worden opgenomen, aangezien deze tijd niet gedeclareerd mag worden. De reistijd van cliënt naar cliënt aansluitend bij een no-show of overige indirect cliëntgebonden werkzaamheden die een zorgverlener in deze tijd oppakt (tevens voor andere cliënten), mogen wél gedeclareerd worden (en gelden dus niet als opslag voor niet-declarabele tijd bij een no-show).
A14: Onregelmatigheidstoeslag | B14: Deze rij laat toe om een extra uitkering volgend uit onregelmatige diensten op te nemen middels een opslag over het bruto-uurloon inclusief vakantiegeld.
A15: Reiskosten cliënt naar cliënt | B15: Zorgaanbieders kunnen hier de reiskosten van cliënt naar cliënt toeberekend per uur invullen. Onder deze reistijd valt niet de tijd die nodig is om op het terrein van de eigen organisatie de cliënt te bereiken, ook niet als de instelling op meerdere locaties werkt. Voor de op de lijst activiteiten en verrichtingen voorkomende categoriën pré-intake en algemeen indirecte tijd geldt dat er geen reistijd mag worden geregistreerd, maar alleen 'wel gewerkte - niet direct cliëntgebonden' tijd.
A16: Overhead | B16: Hieronder vallen de huisvestingskosten niet direct toe te rekenen aan cliënten, ICT-kosten, management kosten en andere algemene kosten en zakelijke lasten. In deze post moet ook het beschikbaarheidscomponent opgenomen worden. Er wordt gerekend met een percentage overhead over de totale directe kostprijs per uur. Materiële cliëntgebonden kosten, zoals spreek- en behandelkamers, groepsgrootte, vallen hier voor dyslexie-bouwstenen ook onder.
A17: Risico-opslag | B17: Hier kunnen zorgaanbieders een percentage opnemen voor het risico.
A18: Te verwachten gemiddelde totaal in te zetten uren | B18: Vul voor elke relevante functie de totale verwachte inzet in uren in het hele traject in.
A19: Gemiddelde duur van het traject in maanden | B19: Vul de gemiddelde duur van een traject in, in maanden.
A20: Indexatie | B20: Een passend indexatie-percentage wordt later bepaald.
A22: Als deze bouwsteen wordt geleverd door een ZZP'er - vul dan enkel de "ZZP-kolom" in.
A23: Bruto-uurloon | B23: Het uurloon waarin alle eventuele premies voor pensioenvoorziening, verzekeringen, en opslagen voor verlof, verzuim, scholing, en andere opslagen voor zover van toepassing zijn verdisconteerd.
A24: Wel gewerkte, niet-declarabele activiteiten | B24: Hieronder vallen onder andere het lezen van vakliteratuur, algemene vergaderingen, intervisiebijeenkomsten en bovenwettelijk verlof. Tevens moet hier de tijd voor no-shows in worden opgenomen, aangezien deze tijd niet gedeclareerd mag worden.
A25: Reiskosten cliënt naar cliënt | B25: Zorgaanbieders kunnen hier de reiskosten van cliënt naar cliënt toeberekend per uur invullen. Onder deze reistijd valt niet de tijd die nodig is om op het terrein van de eigen organisatie de cliënt te bereiken, ook niet als de instelling op meerdere locaties werkt. Voor de op de lijst activiteiten en verrichtingen voorkomende categoriën pré-intake en algemeen indirecte tijd geldt dat er geen reistijd mag worden geregistreerd, maar alleen 'wel gewerkte - niet direct cliëntgebonden' tijd.
A26: Overhead - niet cliëntgebonden kosten | B26: Hieronder vallen de huisvestingskosten niet direct toe te rekenen aan cliënten, ICT-kosten, management kosten en andere algemene kosten en zakelijke lasten. In deze post moet ook het beschikbaarheidscomponent opgenomen worden. Er wordt gerekend met een percentage overhead over de totale directe kostprijs per uur.
A27: Risico-opslag | B27: Hier kunnen zorgaanbieders een percentage opnemen voor het risico.
A28: Te verwachten gemiddelde totaal in te zetten uren | B28: Vul voor elke relevante functie de totale verwachte inzet in uren in het hele traject in.
A29: Gemiddelde duur van het traject in maanden | B29: Vul de gemiddelde duur van een traject in, in maanden.
A32: Hulp-tabellen:
A37: CAO
B38: Percentage eindejaarsuitkering | C38: Verlof
A39: CAO VVT | B39: 0.0833 | C39: 0.1265
A40: CAO GGZ | B40: 0.0833 | C40: 0.1071
A41: CAO Jeugdzorg | B41: 0.083 | C41: 0.1065
A42: CAO WAOJ | B42: 0 | C42: 0.0959
A43: CAO Sociaal Werk | B43: 0.083 | C43: 0.107
A44: CAO GHZ | B44: 0.0705 | C44: 0.107
A46: OP-franchise | B46: 12426
A47: OP % (werkgevers +werknemersdeel) | B47: 0.235
A48: AP franchise | B48: 20940

Sheet Bruto-netto en pensioen
A1: Bruto-netto berekening
O2: Elementen sociale lasten
A3: Percentages per CAO | B3: CAO VVT | D3: CAO GGZ | F3: CAO Jeugdzorg | H3: CAO GHZ | J3: CAO Sociaal Werk | L3: CAO WAOJ | O3: WGA / WIA (+ WKO) | P3: 0.0677 | Q3: Het bedraagt hier de premie voor 2019, bestaande uit een basispremie (6,27%) en een verplichte bijdrage van de werkgever in kinderopvang (0,5%)
A4: Bruto uren | B4: 1 | D4: 1 | F4: 1 | H4: 1 | J4: 1 | L4: 1 | O4: WW | P4: 0.0207 | Q4: Het bedraagt hier de premie voor 2019
A5: Verlof | B5: =(237.5)/(36/7*365) -> 0.12652207 | C5: =B5/$B$9 -> 0.1629435495 | D5: =(201)/(36/7*365) -> 0.1070776256 | E5: =D5/D9 -> 0.1345327497 | F5: =(200)/(36/7*365) -> 0.1065449011 | G5: =F5/F9 -> 0.1329393265 | H5: 0.107 | I5: =H5/H9 -> 0.1344221106 | J5: 0.107 | K5: =J5/J9 -> 0.1344221106 | L5: =(190)/(38/7*365) -> 0.09589041096 | M5: =L5/L9 -> 0.118807176 | O5: Sectorfonds | P5: 0.0047 | Q5: Het bedraagt hier de premie voor 2019, sector gezondheid
A6: Scholing | B6: 0.02 | C6: =B6/$B$9 -> 0.02575733221 | D6: 0.02 | E6: =D6/D9 -> 0.02512807862 | F6: 0.015 | G6: =F6/F9 -> 0.01871595804 | H6: 0.02 | I6: =H6/H9 -> 0.02512562814 | J6: 0.02 | K6: =J6/J9 -> 0.02512562814 | L6: 0.02 | M6: =L6/L9 -> 0.02477978241 | O6: ZVW | P6: 0.0695 | Q6: Het bedraagt hier de premie voor 2019
A7: Ziekteverzuim | B7: 0.067 | C7: =B7/B9 -> 0.08628706292 | D7: 0.067 | E7: =D7/D9 -> 0.08417906338 | F7: 0.067 | G7: =F7/F9 -> 0.0835979459 | H7: 0.067 | I7: =H7/H9 -> 0.08417085427 | J7: 0.067 | K7: =J7/J9 -> 0.08417085427 | L7: 0.067 | M7: =L7/L9 -> 0.08301227108 | O7: WHK | P7: 0.0113 | Q7: Het landelijke percentage voor 2019 is door UWV/SZW vastgesteld op: 1,13% (WGA: 0,80% + Ziektewet Flex 0,33% = 1,13%).
A8: Wel gewerkte, niet-direct (cliëntgebonden) activiteit | B8: 0.01 | C8: =B8/B9 -> 0.01287866611 | D8: 0.01 | E8: =D8/D9 -> 0.01256403931 | F8: 0.01 | G8: =F8/F9 -> 0.01247730536 | H8: 0.01 | I8: =H8/H9 -> 0.01256281407 | J8: 0.01 | K8: =J8/J9 -> 0.01256281407 | L8: 0.01 | M8: =L8/L9 -> 0.01238989121 | O8: WGA eigen risico; herverzekerd | P8: 0 | Q8: Het eigen risico is vastgesteld op 0%, waarbij ervan uit wordt gegaan dat het WGA volledig geregeld is via het UWV.
A9: Netto uren | B9: =B4-B5-B6-B7-B8 -> 0.77647793 | D9: =D4-D5-D6-D7-D8 -> 0.7959223744 | F9: =F4-F5-F6-F7-F8 -> 0.8014550989 | H9: =H4-H5-H6-H7-H8 -> 0.796 | J9: =J4-SUM(J5:J8) -> 0.796 | L9: =L4-(SUM(L5:L8)) -> 0.807109589 | O9: Totaal Sociale lasten | P9: =SUM(P$3:P$8) -> 0.1739
A12: De netto berekening is gebaseerd op de aangegeven verplichte factoren (o.g.v. de CAO's en wetgeving)
A13: van improductiviteit. Deze verplichte factoren gelden evenzeer voor de (kosten van) vervanging gedurende verlof, scholing en ziekteverzuim. | O13: Elementen pensioen - voorbeeld
A14: Dit is derhalve in de rekenpercentages meegenomen. | P14: CAO VVT
O15: Fulltime salaris | P15: ='Dyslexie - 45A45'!G8*1878 -> 23860.59192
A16: Nb. Een realistisch percentage voor niet-clientgebonden activiteiten moet in de rekensheet worden ingevuld. | O16: Vakantietoeslag | P16: =P15*Q16 -> 1908.847354 | Q16: 0.08
O17: Eindejaarsuitkering | P17: =P15*Q17 -> 1987.587307 | Q17: 0.0833
O18: Onregelmatigheidstoeslag | P18: =P15*Q18 -> 238.6059192 | Q18: 0.01
P19: =SUM(P15:P18) -> 27995.6325
P20: Premies PZW
O21: OP Premie vaststellen
O22: % (werkgevers +werknemersdeel) | P22: 0.235
O23: Franchise | P23: 12426
O24: Grondslag | P24: =P19-P23 -> 15569.6325
O25: Premie (per jaar) | P25: =P24*P22 -> 3658.863638
O27: Werkgeversdeel OP (toe te passen %, na aftrek franchise) | P27: =(P25/P19)*0.5 -> 0.06534704365
O29: AP Premie vaststellen
O30: % (werkgevers +werknemersdeel) | P30: 0.006
O31: Franchise (= frachisebedrag pensioenfonds) | P31: 20940
O32: Grondslag | P32: =P19-P31 -> 7055.632503
O33: Premie (per jaar) | P33: =P30*P32 -> 42.33379502
O35: Werkgeversdeel AP (toe te passen %, na aftrek franchise) | P35: =IF(((P33/P19)*0.5)>0,(P33/P19)*0.5,0) -> 0.00075607856
O37: Totaal Werkgeversdeel pensioen | P37: =P27+P35 -> 0.06610312221
O39: Totaal pensioenpremies en sociale lasten | P39: =P9+P37 -> 0.2400031222

Sheet Overzicht bouwstenen
B2: Ambulant | G2: Daghulp en dagbesteding | L2: Jeugdhulp met verblijf
B3: Bouwsteen | C3: interventie-niveau | D3: code | E3: eenheid | G3: Bouwsteen | H3: interventie-niveau | I3: code | J3: eenheid | L3: Bouwsteen | M3: interventie-niveau | N3: code | O3: eenheid
B4: Meedoen en zelfredzaamheid | C4: Licht | D4: 50A03 | E4: per uur | G4: Meedoen en zelfredzaamheid | H4: Dagbesteding basis | I4: 41A19 | J4: dagdeel | L4: Meedoen en zelfredzaamheid | M4: Verblijf basis | N4: 43A15 | O4: etmaal
C5: Midden | D5: 50A04 | E5: per uur | H5: Dagbesteding basis intensief | I5: 41A20 | J5: dagdeel | M5: Verblijf specialistisch | N5: 43A16 | O5: etmaal
C6: Zwaar | D6: 50A05 | E6: per uur | H6: Dagbesteding licht specialistisch | I6: 41A21 | J6: dagdeel | M6: Zelfstandigheidstraining | N6: 43A17 | O6: etmaal
H7: Dagbesteding intensief specialistisch | I7: 50A06 | J7: dagdeel | M7: Logeren basis | N7: 43A32 | O7: etmaal
M8: Logeren specialistisch | N8: 43A33 | O8: etmaal
B10: Gezond zijn | C10: Licht | D10: 45A33 | E10: traject | G10: Gezond zijn | H10: Dagbehandeling | I10: 41A08 | J10: dagdeel | L10: Gezond zijn | M10: Verblijf basis | N10: 43A18 | O10: etmaal
C11: Midden | D11: 45A34 | E11: per uur | M11: Verblijf specialistisch | N11: 43A19 | O11: etmaal
C12: Zwaar | D12: 45A35 | E12: per uur | M12: Intramur. Behand. Verslaving jeugd | N12: 43A01 | O12: etmaal
C13: Medicijncontrole | D13: 45A14 | E13: traject (jaar) | M13: Pilot bouwsteen | N13: 43B16 | O13: etmaal
C14: Fact | D14: 45A41 | E14: traject (maand) | M14: Intramur. Behand. Verslaving gezin | N14: 43B10 | O14: etmaal
C15: Vaktherapie | D15: nieuw | E15: per uur | M15: intramuraal zeer specialistisch | N15: 43B19 | O15: etmaal
C16: Plus IV5 | D16: 45A37 | E16: per uur | M16: 8GZ Gezinsbehandeling | N16: 43B11 | O16: etmaal
C17: Plus IV6 | D17: 45A44 | E17: per uur
B19: Gezond opgroeien | C19: Licht | D19: 45A21 | E19: traject | G19: Gezond opgroeien | H19: Dagbehandeling | I19: 41B05 | J19: dagdeel | L19: Gezond opgroeien | M19: Gastgezin | N19: 43B01 | O19: etmaal
C20: Opvoedproblematiek a | D20: 45A22 | E20: traject (maand) | H20: KDC | I20: 41B06 | J20: dagdeel | M20: Gezinshuis | N20: 43A04 | O20: etmaal
C21: Opvoedproblematiek b | D21: 45A25 | E21: traject (maand) | M21: Time-out | N21: 43A21 | O21: etmaal
C22: Echtscheidingsproblematiek | D22: 45A28 | E22: traject (maand)
C23: Zwaar | D23: 45A23 | E23: traject (maand)
B25: Dyslexie | C25: Diagnostiek | D25: 45A45 | E25: traject
C26: Behandeling | D26: 45A64 | E26: traject (maand)
B30: In te vullen factoren | C30: tabblad | G30: In te vullen factoren | H30: tabblad | L30: In te vullen factoren | M30: tabblad
B31: 1. CAO van in te zetten functie | C31: Kostprijs Ambulant | G31: 1. CAO van in te zetten functie | H31: Kostprijs Daghulp | L31: 1. CAO van in te zetten functie | M31: Kostprijs Residentieel
B32: 2. Functie-werkgroep | C32: Kostprijs Ambulant | G32: 2. Functie-werkgroep | H32: Kostprijs Daghulp | L32: 2. Functie-werkgroep | M32: Kostprijs Residentieel
B33: 3. Salaris bij (1) en (2) | C33: Kostprijs Ambulant | G33: 3. Salaris bij (1) en (2) | H33: Kostprijs Daghulp | L33: 3. Salaris bij (1) en (2) | M33: Kostprijs Residentieel
B34: 4. Onregelmatigheidstoeslag | C34: Kostprijs Ambulant | G34: 4. Onregelmatigheidstoeslag | H34: Kostprijs Daghulp | L34: 4. Onregelmatigheidstoeslag | M34: Kostprijs Residentieel
B35: 5. Reiskosten client-client | C35: Kostprijs Ambulant | G35: 5. Reiskosten client-client | H35: Kostprijs Daghulp | L35: 5. Reiskosten client-client | M35: Kostprijs Residentieel
B36: 6. Overhead (niet clientgebonden) | C36: Kostprijs Ambulant | G36: 6. Overhead (niet clientgebonden) | H36: Kostprijs Daghulp | L36: 6. Overhead (niet clientgebonden) | M36: Kostprijs Residentieel
B37: 7. Risico / Marge | C37: Kostprijs Ambulant | G37: 7. Risico / Marge | H37: Kostprijs Daghulp | L37: 7. Risico / Marge | M37: Kostprijs Residentieel
B38: 8. Weging inzet (bij meerdere functies) | C38: Kostprijs Ambulant | G38: 8. Inzet per functie (per dagdeel) | H38: Kostprijs Daghulp | L38: 8. Inzet per functie (per etmaal per kind) | M38: Kostprijs Residentieel
B39: 9. Inzet niet-clientgebonden tijd (%) | C39: Kostprijs Ambulant | G39: 9. Inzet niet-clientgebonden tijd (%) | H39: Kostprijs Daghulp | L39: 9. Inzet niet-clientgebonden tijd (%) | M39: Kostprijs Residentieel
G40: 10. Gemiddelde groepsgrootte | H40: Kostprijs Daghulp | L40: 10. Niet-gebouwgebonden kosten | M40: Kostprijs Residentieel
B41: Optioneel (bouwstenen met trajectprijs) | G41: 11. Niet-gebouwgebonden kosten | H41: Kostprijs Daghulp | L41: 11. Gebouwgebonden kosten | M41: Kostprijs Residentieel
B42: 10. Totale inzet (uren) in hele traject | C42: Kostprijs Ambulant | G42: 12. Gebouwgebonden kosten | H42: Kostprijs Daghulp
B43: 11. Gemiddelde duur traject (maanden) | C43: Kostprijs Ambulant

Sheet Invulblad CAO (hidden)
A1: De groene vensters dienen gevuld te worden met de gegevens van de organisatie.
A3: Ondersteuningsvorm: benaming van gemeente | G3: HH-1 | J3: HH-2
A4: CAO keuze | G4: VVT | J4: VVT | M4: [Datum CAO]
A5: FWG schaal | G5: FWG10 | H5: FWG15 | J5: FWG15 | K5: FWG20
A6: Periodiek | G6: 3 | H6: 7 | J6: 7 | K6: 4
A7: Inzetmix per FWG schaal | G7: 0.75 | H7: 0.25 | J7: 0.6 | K7: 0.4
C9: Vaste componenten of cao afgeleid | E9: % | M9: Pas toe en leg uit
A10: LOONKOSTEN PER UUR
A11: Bruto uurloon cao | G11: =VLOOKUP(G4&G5&G6,#REF!,6,0) ->  | H11: =VLOOKUP(G4&H5&H6,#REF!,6,0) ->  | J11: =VLOOKUP(J4&J5&J6,#REF!,6,0) ->  | K11: =VLOOKUP(J4&K5&K6,#REF!,6,0) -> 
A12: Vakantietoeslag (minimum cao bepaald 0,98) | C12: Ja | E12: 0.08 | G12: =IF((G$11*$E12)>0.98,(G$11*$E12),0.98) ->  | H12: =IF((H$11*$E12)>0.98,(H$11*$E12),0.98) -> 
A13: Eindejaarsuitkering (minimum cao bepaald (0,94) | C13: Ja | E13: 0.074 | G13: =IF((G$11*$E13)>0.94,(G$11*$E13),0.94) ->  | H13: =IF((H$11*$E13)>0.94,(H$11*$E13),0.94) -> 
A14: Totaal bruto uurloon | E14: =SUM(E12:E13) -> 0.154 | G14: =SUM(G11:G13) ->  | H14: =SUM(H11:H13) -> 
A16: OP werkgeversdeel (zie werkblad "Pensioenpremie) | C16: Ja | G16: =G$14*'Pensioenpremie CAO'!B$16 ->  | H16: =H$14*'Pensioenpremie CAO'!C$16 ->  | J16: =J$14*'Pensioenpremie CAO'!D$16 ->  | K16: =K$14*'Pensioenpremie CAO'!E$16 -> 
A17: AP werkgeversdeel (zie werkblad "Pensioenpremie) | C17: Ja | G17: =G$14*'Pensioenpremie CAO'!B$24 ->  | H17: =H$14*'Pensioenpremie CAO'!C$24 ->  | J17: =J$14*'Pensioenpremie CAO'!D$24 ->  | K17: =K$14*'Pensioenpremie CAO'!E$24 -> 
A18: Totaal pensioenpremies | G18: =SUM(G16:G17) ->  | H18: =SUM(H16:H17) -> 
A20: WGA / WIA (+ WKO) | C20: Ja | E20: 0.0666 | G20: =G$14*$E20 ->  | H20: =H$14*$E20 -> 
A21: WW | C21: Ja | E21: 0.0264 | G21: =G$14*$E21 -> 
A22: Sectorfonds | C22: Ja | E22: 0.0094 | G22: =G$14*$E22 -> 
A23: ZVW | C23: Ja | E23: 0.0665
A24: WHK | C24: Nee | E24: 0.0091 | G24: =G$14*$E24 ->  | H24: =H$14*$E24 ->  | J24: =J$14*$E24 ->  | K24: =K$14*$E24 ->  | M24: Beschikking belastingdienst
A25: WGA eigen risico; herverzekerd | C25: Nee | E25: 0 | G25: =G$14*$E25 ->  | H25: =H$14*$E25 ->  | J25: =J$14*$E25 ->  | K25: =K$14*$E25 ->  | M25: Eigen risicodrager: keuze onderneming
A26: Totaal Sociale lasten | E26: =SUM(E20:E25) -> 0.178 | G26: =SUM(G20:G25) ->  | H26: =SUM(H20:H25) -> 
A28: Totaal te verlonen kosten per uur | G28: =G14+G18+G26 ->  | H28: =H14+H18+H26 -> 
A30: KOSTPRIJS PER UUR
A32: Verlof | C32: Ja | E32: 0.1359 | G32: =G$28*$E32 ->  | H32: =H$28*$E32 -> 
A33: Ziekteverzuim | C33: Nee | E33: 0.0634 | G33: =G$28*$E33 ->  | H33: =H$28*$E33 ->  | J33: =J$28*$E33 ->  | K33: =K$28*$E33 ->  | M33: Bron: Brancheviewer Vernet
A34: Scholing | C34: Ja | E34: 0.02 | G34: =G$28*$E34 -> 
A35: Kosten niet-werkbare uren claimrecht (verlof, ziekteverzuim, scholing) | E35: =SUM(E32:E34) -> 0.2193 | G35: =SUM(G32:G34) -> 
A37: SECUNDAIR TOE TE BEREKENEN KOSTEN PER UUR
A39: Niet planbaar, wel te verlonen tijd | C39: Nee | E39: 0.025 | G39: =$E39*G$28 ->  | H39: =$E39*H$28 -> 
A40: Indirect Clientgebonden tijd (%) | C40: Nee | E40: 0.025 | G40: =$E40*G$28 ->  | M40: Rapportage clientdossier, casus overleg
A41: Organisatiegebonden tijd (%) | C41: Nee | E41: 0.025 | G41: =$E41*G$28 ->  | M41: Overige administratie, team overleg
A43: Eerste reis naar werk | C43: Nee | G43: 0.28 | H43: 0.28 | J43: 0.28 | K43: 0.28 | M43: Ter vergelijking: onderzoek PWC april 2017 invloed op tarief eerste reis naar werk 3,4% tov de hier gehanteerde 1,9% (€0,28)
A44: Reiskosten client naar client, toe te berekenen per uur | C44: Nee | G44: 0.2 | H44: 0.2 | J44: 0.2 | K44: 0.2
A45: Totaal reiskosten per uur | G45: =SUM(G43:G44) -> 0.48 | H45: =SUM(H43:H44) -> 0.48 | J45: 0.48 | K45: 0.48
A47: Overhead over alle bovenstaande posten | C47: Nee | E47: 0.15 | G47: =$E47*(G$28+G$35+G$39+G$40+G$45) ->  | H47: =$E47*(H$28+H$35+H$39+H$40+H$45) ->  | J47: =$E47*(J$28+J$35+J$39+J$40+J$45) ->  | K47: =$E47*(K$28+K$35+K$39+K$40+K$45) ->  | M47: Toelichting
A48: Totale kosten per uur in te zetten medewerker | G48: =G$28+G$35+G$39+G$40+G$45+G$47 ->  | H48: =H$28+H$35+H$39+H$40+H$45+H$47 -> 
A50: Opslag voor additionele administratieve lasten | C50: Nee | E50: 0 | G50: =$E50*G$48 ->  | H50: =$E50*H$48 ->  | M50: Gemeentelijke eisen, inkoopkenmerken, extra accountantscontroles
A51: RISICO & MARGE | C51: Nee | E51: 0.05 | G51: =$E51*G$48 ->  | H51: =$E51*H$48 -> 
A53: Ongewogen tarief totaal | G53: =G$48+G$51 ->  | H53: =H$48+H$51 -> 
A55: Gewogen tarief | G55: =(G53*G7)+(H53*H7) ->  | J55: =(J53*J7)+(K53*K7) ->  | M55: Tarief per ondersteuningsvorm met de gekozen FWG inzetmix

Sheet Pensioenpremie CAO (hidden)
A1: Berekening pensioenpremie (VVT / VGN beide Pensioenfonds PZW)
A3: Ondersteuningsvorm; benaming gemeente | B3: ='Invulblad CAO'!G3 -> HH-1 | C3: ='Invulblad CAO'!G3 -> HH-1 | D3: ='Invulblad CAO'!J3 -> HH-2 | E3: ='Invulblad CAO'!J3 -> HH-2
A4: Cao | B4: ='Invulblad CAO'!G4 -> VVT | C4: ='Invulblad CAO'!G4 -> VVT | D4: ='Invulblad CAO'!J4 -> VVT | E4: ='Invulblad CAO'!J4 -> VVT
A5: FWG | B5: ='Invulblad CAO'!G5 -> FWG10 | C5: ='Invulblad CAO'!H5 -> FWG15 | D5: ='Invulblad CAO'!J5 -> FWG15 | E5: ='Invulblad CAO'!K5 -> FWG20
A7: Totaal Bruto uurloon | B7: ='Invulblad CAO'!G14 ->  | C7: ='Invulblad CAO'!H14 ->  | D7: ='Invulblad CAO'!J14 ->  | E7: ='Invulblad CAO'!K14 -> 
A8: Fulltime salaris | B8: =B7*1878 ->  | C8: =C7*1878 -> 
A10: OP Premie vaststellen
A11: % (werkgevers +werknemersdeel) | B11: 0.235 | C11: 0.235 | D11: 0.235 | E11: 0.235
A12: Franchise | B12: 11829 | C12: 11829 | D12: 11829 | E12: 11829
A13: Grondslag | B13: =B8-B12 ->  | C13: =C8-C12 ->  | D13: =D8-D12 ->  | E13: =E8-E12 -> 
A14: Premie (per jaar) | B14: =B13*B11 ->  | C14: =C13*C11 ->  | D14: =D13*D11 ->  | E14: =E13*E11 -> 
A16: Werkgeversdeel OP (toe te passen %, na aftrek franchise) | B16: =(B14/B8)*0.5 ->  | C16: =(C14/C8)*0.5 ->  | D16: =(D14/D8)*0.5 ->  | E16: =(E14/E8)*0.5 -> 
A18: AP Premie vaststellen
A19: % (werkgevers +werknemersdeel) | B19: 0.005 | C19: 0.005 | D19: 0.005 | E19: 0.005
A20: Franchise (= frachisebedrag pensioenfonds) | B20: 20108 | C20: 20108 | D20: 20108 | E20: 20108
A21: Grondslag | B21: =B8-B20 ->  | C21: =C8-C20 ->  | D21: =D8-D20 ->  | E21: =E8-E20 -> 
A22: Premie (per jaar) | B22: =B19*B21 ->  | C22: =C19*C21 ->  | D22: =D19*D21 ->  | E22: =E19*E21 -> 
A24: Werkgeversdeel AP (toe te passen %, na aftrek franchise) | B24: =(B22/B8)*0.5 ->  | C24: =(C22/C8)*0.5 ->  | D24: =(D22/D8)*0.5 ->  | E24: =(E22/E8)*0.5 -> 
A26: Totaal Werkgeversdeel | B26: =B16+B24 ->  | C26: =C16+C24 -> 
